bitfinex/quotes_BTCUSD_20240819
["timestamp","ask_amount","ask_price","bid_price","bid_amount"]
[1724057162938,0.004822,58711.0,58710.0,1.72665774]
[1724057163159,0.004822,58711.0,58710.0,1.7713608]
[1724057163358,0.004822,58711.0,58710.0,1.6758019]
[1724057163563,0.004822,58711.0,58710.0,1.7922019]
[1724057163719,0.000822,58711.0,58710.0,1.7922019]
[1724057164207,0.002822,58711.0,58710.0,1.7932019]
[1724057164409,0.00156115,58711.0,58710.0,1.7922019]
[1724057164612,0.00156115,58711.0,58710.0,1.75785161]
[1724057164816,0.00256115,58711.0,58710.0,1.75785161]
[1724057165016,0.00256115,58711.0,58710.0,1.79320132]
[1724057165435,0.00156115,58711.0,58710.0,1.74849884]
[1724057166896,0.00256115,58711.0,58710.0,1.74850109]
[1724057170796,0.00256115,58711.0,58710.0,1.72765774]
[1724057171004,0.00256115,58711.0,58710.0,1.74850472]
[1724057171409,0.00256115,58711.0,58710.0,1.74850432]
[1724057172260,0.00256115,58711.0,58710.0,1.64850432]
[1724057172467,0.00256115,58711.0,58710.0,1.62765774]
[1724057173833,0.00156115,58711.0,58710.0,0.9990462]
[1724057174037,0.00056115,58711.0,58710.0,0.9980462]
[1724057174265,0.00156115,58711.0,58710.0,0.9980462]
[1724057174465,0.00256115,58711.0,58710.0,0.9990462]
[1724057174666,0.00056115,58711.0,58710.0,0.2385322]
[1724057174871,0.00056115,58711.0,58710.0,0.0019042]
[1724057175074,0.71283715,58711.0,58710.0,0.0029042]
[1724057175296,0.73977633,58711.0,58710.0,0.0029042]
[1724057175558,0.73977633,58711.0,58710.0,0.0019042]
[1724057175980,1.08042733,58711.0,58710.0,0.0019042]
[1724057176395,1.07942733,58711.0,58710.0,0.0019042]
[1724057176606,1.08042733,58711.0,58710.0,0.0019042]
[1724057177227,1.13952733,58711.0,58710.0,0.0019042]
[1724057177440,1.14152733,58711.0,58710.0,0.0009042]
[1724057177641,1.14652733,58711.0,58710.0,0.0009042]
[1724057177856,1.14352733,58711.0,58710.0,0.0009042]
[1724057178271,1.02712733,58711.0,58710.0,0.0009042]
[1724057178748,1.03512733,58711.0,58710.0,0.0009042]
[1724057178978,1.02712733,58711.0,58710.0,0.0009042]
[1724057179277,1.03512733,58711.0,58710.0,0.0009042]
[1724057179477,1.54799516,58711.0,58710.0,0.0009042]
[1724057179666,1.39877833,58711.0,58710.0,0.0009042]
[1724057180089,1.39377833,58711.0,58710.0,0.0009042]
[1724057180310,1.39877833,58711.0,58710.0,0.0009042]
[1724057182304,1.05812733,58711.0,58710.0,0.0009042]
[1724057182514,0.99802733,58711.0,58710.0,0.0009042]
[1724057182728,0.99802733,58711.0,58710.0,0.0019042]
[1724057182937,0.99802733,58711.0,58710.0,0.0009042]
[1724057184495,1.40087833,58711.0,58710.0,0.0009042]
[1724057184904,1.06022733,58711.0,58710.0,0.0009042]
[1724057185529,1.40087833,58711.0,58710.0,0.0009042]
[1724057187490,0.99802733,58711.0,58710.0,0.0009042]
[1724057187915,0.99802733,58711.0,58710.0,0.0019042]
[1724057189025,0.55147633,58711.0,58710.0,0.0039042]
[1724057189889,0.04050033,58711.0,58710.0,0.1762322]
[1724057190113,0.04050033,58711.0,58710.0,0.2374322]
[1724057190969,0.04050033,58711.0,58710.0,0.0671042]
[1724057191209,0.03250033,58711.0,58710.0,0.0671042]
[1724057191423,0.03350033,58711.0,58710.0,0.0671042]
[1724057191636,0.02850033,58711.0,58710.0,0.0671042]
[1724057191846,0.02750033,58711.0,58710.0,0.0671042]
[1724057192060,0.02850033,58711.0,58710.0,0.2374322]
[1724057192319,0.02850033,58711.0,58710.0,0.0651042]
[1724057192540,0.14390033,58711.0,58710.0,0.0039042]
[1724057192754,0.14390033,58711.0,58710.0,0.0029042]
[1724057192963,0.14490033,58711.0,58710.0,0.0039042]
[1724057193403,0.14390033,58711.0,58710.0,0.0039042]
[1724057194037,0.14390033,58711.0,58710.0,0.0019042]
[1724057194460,0.14390033,58711.0,58710.0,0.0029042]
[1724057194685,0.14390033,58711.0,58710.0,0.0019042]
[1724057194878,1.20391376,58711.0,58710.0,0.0019042]
[1724057195136,1.50207833,58711.0,58710.0,0.0019042]
[1724057196218,1.50407833,58711.0,58710.0,0.0019042]
[1724057196427,1.50407833,58711.0,58710.0,0.0009042]
[1724057196639,0.88112733,58711.0,58710.0,0.0009042]
[1724057196846,0.99752733,58711.0,58710.0,0.0009042]
[1724057197277,1.44017833,58711.0,58710.0,0.0009042]
[1724057197546,1.50307833,58711.0,58710.0,0.0009042]
[1724057197761,1.50507833,58711.0,58710.0,0.0009042]
[1724057197974,1.50307833,58711.0,58710.0,0.0009042]
[1724057198399,1.50707833,58711.0,58710.0,0.0009042]
[1724057198605,1.39067833,58711.0,58710.0,0.0009042]
[1724057206650,1.44399014,58711.0,58710.0,0.0009042]
[1724057210930,1.86106376,58711.0,58710.0,0.0009042]
[1724057211357,1.88653797,58711.0,58710.0,0.0009042]
[1724057211556,2.01201217,58711.0,58710.0,0.0009042]
[1724057212169,2.00601217,58711.0,58710.0,0.0009042]
[1724057212370,1.88464114,58711.0,58710.0,0.0009042]
[1724057212788,1.87864114,58711.0,58710.0,0.0009042]
[1724057212985,1.88864114,58711.0,58710.0,0.0009042]
[1724057213664,1.89264114,58711.0,58710.0,0.0009042]
[1724057214017,1.88864114,58711.0,58710.0,0.0009042]
[1724057214428,1.89564114,58711.0,58710.0,0.0009042]
[1724057215152,2.06719568,58711.0,58710.0,0.0009042]
[1724057215268,2.40784668,58711.0,58710.0,0.0009042]
[1724057216478,2.57995112,58711.0,58710.0,0.0009042]
[1724057216672,2.40839658,58711.0,58710.0,0.0009042]
[1724057218510,2.40852844,58711.0,58710.0,0.0009042]
[1724057219474,2.40852844,58711.0,58710.0,2e-07]
[1724057219475,2.77694314,58711.0,58710.0,2e-07]
[1724057220294,2.75994314,58711.0,58710.0,2e-07]
[1724057220514,2.87654314,58711.0,58710.0,2e-07]
[1724057220721,2.89054314,58711.0,58710.0,2e-07]
[1724057220923,2.87654314,58711.0,58710.0,2e-07]
[1724057221333,2.88854314,58711.0,58710.0,2e-07]
[1724057222355,2.90254314,58711.0,58710.0,2e-07]
[1724057222566,2.88854314,58711.0,58710.0,2e-07]
[1724057222789,3.04809768,58711.0,58710.0,2e-07]
[1724057223011,3.06209768,58711.0,58710.0,2e-07]
[1724057223249,3.07609768,58711.0,58710.0,2e-07]
[1724057223666,3.06209768,58711.0,58710.0,2e-07]
[1724057223816,3.04809768,58711.0,58710.0,2e-07]
[1724057224233,3.04809768,58711.0,58703.0,0.0009042]
[1724057224234,1.678914,58704.0,58703.0,0.0009042]
[1724057224576,1.85522581,58704.0,58703.0,0.0009042]
[1724057224703,2.31251781,58704.0,58703.0,0.0009042]
[1724057224909,2.33945699,58704.0,58703.0,0.0009042]
[1724057226461,2.49249627,58704.0,58703.0,0.0009042]
[1724057226701,2.63025915,58704.0,58703.0,0.0009042]
[1724057227404,2.64225915,58704.0,58703.0,0.0009042]
[1724057228464,2.48921987,58704.0,58703.0,0.0009042]
[1724057229018,2.36545699,58704.0,58703.0,0.0009042]
[1724057229439,2.37583272,58704.0,58703.0,0.0009042]
[1724057233479,2.52879439,58704.0,58703.0,0.0009042]
[1724057233629,1.533217,58700.0,58699.0,0.0009042]
[1724057233831,1.96902881,58700.0,58699.0,0.0009042]
[1724057234281,2.04623699,58700.0,58699.0,0.0009042]
[1724057234934,2.19917585,58700.0,58699.0,0.0009042]
[1724057236154,1.88340685,58700.0,58699.0,0.0009042]
[1724057236407,1.98916799,58700.0,58699.0,0.0009042]
[1724057236724,2.16416799,58700.0,58699.0,0.0009042]
[1724057237591,2.18716799,58700.0,58699.0,0.0009042]
[1724057238151,2.18486292,58700.0,58699.0,0.0009042]
[1724057248539,2.33785991,58700.0,58699.0,0.0009042]
[1724057248841,2.33868191,58700.0,58699.0,0.0009042]
[1724057250192,2.04708191,58700.0,58699.0,0.0009042]
[1724057250418,2.27408191,58700.0,58699.0,0.0009042]
[1724057250635,2.12108492,58700.0,58699.0,0.0009042]
[1724057253024,2.14843097,58700.0,58699.0,0.0009042]
[1724057254408,2.12108492,58700.0,58699.0,0.0009042]
[1724057256423,1.94608492,58700.0,58699.0,0.0009042]
[1724057256799,1.41126992,58700.0,58699.0,0.0009042]
[1724057256992,1.21745106,58700.0,58699.0,0.0655042]
[1724057257238,1.06415492,58700.0,58699.0,0.0655042]
[1724057258198,1.18715492,58700.0,58699.0,0.0655042]
[1724057268761,1.18715492,58700.0,58699.0,0.1481042]
[1724057269005,0.31467299,58700.0,58699.0,0.1481042]
[1724057269219,0.31467299,58700.0,58699.0,0.3184642]
[1724057269220,0.24697721,58700.0,58699.0,0.3184642]
[1724057269426,0.24697721,58700.0,58699.0,0.6611852]
[1724057269427,0.04476118,58700.0,58699.0,0.6611852]
[1724057269632,0.04476118,58700.0,58699.0,1.0019062]
[1724057269839,0.03776118,58700.0,58699.0,0.6611852]
[1724057270043,0.03776118,58700.0,58699.0,1.0019062]
[1724057270044,0.002822,58700.0,58699.0,1.0019062]
[1724057270249,0.02976118,58700.0,58699.0,1.0019062]
[1724057270487,0.002822,58700.0,58699.0,1.0019062]
[1724057270784,0.006822,58700.0,58699.0,1.0019062]
[1724057271158,0.002822,58700.0,58699.0,1.0019062]
[1724057271710,0.000822,58700.0,58699.0,1.0019062]
[1724057271904,0.001822,58700.0,58699.0,1.0019062]
[1724057272397,0.000822,58700.0,58699.0,1.0019062]
[1724057272591,0.001822,58700.0,58699.0,1.0029062]
[1724057272846,0.002822,58700.0,58699.0,1.0029062]
[1724057274249,0.002822,58700.0,58699.0,0.3214642]
[1724057274599,0.02976118,58700.0,58699.0,0.3214642]
[1724057276305,0.02976118,58700.0,58699.0,1.0029062]
[1724057276692,0.002822,58700.0,58699.0,1.0029062]
[1724057279253,0.002822,58700.0,58699.0,0.6621852]
[1724057282166,0.001822,58700.0,58699.0,0.6621852]
[1724057282368,0.000822,58700.0,58699.0,0.6611852]
[1724057283169,0.000822,58700.0,58699.0,1.97150274]
[1724057283170,0.001822,58700.0,58699.0,1.97150274]
[1724057283551,0.001822,58700.0,58699.0,1.99234887]
[1724057283976,0.001822,58700.0,58699.0,2.03704474]
[1724057284596,0.000822,58700.0,58699.0,2.03804474]
[1724057284945,0.001822,58700.0,58699.0,2.03804474]
[1724057285349,0.001822,58700.0,58699.0,1.88810078]
[1724057285551,0.000822,58700.0,58699.0,2.00470078]
[1724057285762,0.000822,58700.0,58699.0,2.00570078]
[1724057285763,0.002822,58700.0,58699.0,2.00570078]
[1724057286141,0.002822,58700.0,58699.0,2.00270078]
[1724057287305,0.002822,58700.0,58699.0,1.66197173]
[1724057287510,0.002822,58700.0,58699.0,1.65261982]
[1724057287737,0.002822,58700.0,58699.0,3.15261982]
[1724057288340,0.002822,58700.0,58699.0,1.02374428]
[1724057288955,0.002822,58700.0,58699.0,1.0029062]
[1724057289152,0.001822,58700.0,58699.0,1.0029062]
[1724057289526,0.001822,58700.0,58699.0,1.0019062]
[1724057290148,0.000822,58700.0,58699.0,1.0019062]
[1724057290349,0.001822,58700.0,58699.0,1.0029062]
[1724057291416,0.002822,58700.0,58699.0,1.0029062]
[1724057292359,0.002822,58700.0,58699.0,0.3214642]
[1724057292360,0.001822,58700.0,58699.0,0.3214642]
[1724057292734,0.002822,58700.0,58699.0,0.3214642]
[1724057292997,0.001822,58700.0,58699.0,0.6611852]
[1724057293200,0.001822,58700.0,58699.0,0.6621852]
[1724057293621,0.000822,58700.0,58699.0,0.6611852]
[1724057293789,0.001822,58700.0,58699.0,0.6621852]
[1724057293992,0.001822,58700.0,58699.0,0.0715042]
[1724057294415,0.02876118,58700.0,58699.0,0.0715042]
[1724057294633,0.001822,58700.0,58699.0,0.0715042]
[1724057294992,0.02976118,58700.0,58699.0,0.0715042]
[1724057295206,0.002822,58700.0,58699.0,0.2418642]
[1724057295411,0.02876118,58700.0,58699.0,0.2418642]
[1724057295638,0.002822,58700.0,58699.0,0.2418642]
[1724057295850,0.02976118,58700.0,58699.0,0.2418642]
[1724057296029,0.002822,58700.0,58699.0,0.2418642]
[1724057296250,0.02976118,58700.0,58699.0,0.2418642]
[1724057297083,0.002822,58700.0,58699.0,0.2418642]
[1724057297726,0.001822,58700.0,58699.0,0.2408642]
[1724057298115,0.001822,58700.0,58699.0,0.6597852]
[1724057298334,0.000822,58700.0,58699.0,0.6597852]
[1724057298746,0.001822,58700.0,58699.0,0.6597852]
[1724057299129,0.001822,58700.0,58699.0,0.68064084]
[1724057299330,0.001822,58700.0,58699.0,0.6597852]
[1724057299531,0.001822,58700.0,58699.0,0.68064165]
[1724057303448,0.001822,58700.0,58699.0,0.6597852]
[1724057303673,0.001822,58700.0,58699.0,0.68064319]
[1724057303875,0.001822,58700.0,58699.0,0.6597852]
[1724057304075,0.001822,58700.0,58699.0,0.68064313]
[1724057304640,0.001822,58700.0,58699.0,1.02136234]
[1724057306936,0.001822,58700.0,58699.0,0.68064134]
[1724057307293,0.001822,58700.0,58699.0,0.68064123]
[1724057310334,0.001822,58700.0,58699.0,1.02136223]
[1724057311292,0.001822,58700.0,58699.0,1.03072464]
[1724057311470,0.001822,58700.0,58699.0,1.0005062]
[1724057311671,0.001822,58700.0,58699.0,1.03073056]
[1724057311872,0.001822,58700.0,58699.0,1.02136817]
[1724057312074,0.001822,58700.0,58699.0,1.03073063]
[1724057312508,0.001822,58700.0,58699.0,1.4068338]
[1724057312933,0.001822,58700.0,58699.0,2.9068338]
[1724057313599,0.001822,58700.0,58699.0,1.4068338]
[1724057313773,0.076922,58700.0,58699.0,0.9243128]
[1724057314003,0.076922,58700.0,58699.0,0.87956817]
[1724057314157,0.075922,58700.0,58699.0,0.54384717]
[1724057314560,0.076922,58700.0,58699.0,0.54384717]
[1724057314760,0.076922,58700.0,58699.0,0.55284717]
[1724057315028,0.076922,58700.0,58699.0,0.54684717]
[1724057315029,0.001822,58700.0,58699.0,0.54684717]
[1724057315442,0.001822,58700.0,58699.0,0.55384717]
[1724057315443,0.002822,58700.0,58699.0,0.55384717]
[1724057315654,0.002822,58700.0,58699.0,0.55385153]
[1724057316066,0.002822,58700.0,58699.0,0.55385177]
[1724057316287,0.002822,58700.0,58699.0,0.57471834]
[1724057317309,0.002822,58700.0,58699.0,0.23399734]
[1724057317512,0.139022,58700.0,58699.0,0.23399734]
[1724057317924,0.16596118,58700.0,58699.0,0.21313077]
[1724057318166,0.10516118,58700.0,58699.0,0.89457277]
[1724057318379,0.10516118,58700.0,58699.0,0.95987277]
[1724057318380,0.02976118,58700.0,58699.0,0.95987277]
[1724057318586,0.002822,58700.0,58699.0,0.95987277]
[1724057318990,0.002822,58700.0,58699.0,0.55385177]
[1724057323248,0.002822,58700.0,58699.0,0.5329852]
[1724057323466,0.002822,58700.0,58699.0,0.55383609]
[1724057327420,0.002822,58700.0,58699.0,0.5329852]
[1724057328352,0.002822,58700.0,58699.0,0.55383635]
[1724057329275,0.143722,58700.0,58699.0,0.5329852]
[1724057329900,0.17066118,58700.0,58699.0,0.5329852]
[1724057330508,0.11056118,58700.0,58699.0,0.5329852]
[1724057330684,0.11056118,58700.0,58699.0,0.55383648]
[1724057330879,0.083622,58700.0,58699.0,0.55383648]
[1724057332517,0.083622,58700.0,58699.0,0.5329852]
[1724057332730,0.083622,58700.0,58699.0,0.55383641]
[1724057333357,0.083622,58700.0,58699.0,0.55383483]
[1724057334155,0.083622,58700.0,58699.0,0.21311383]
[1724057334566,0.11056118,58700.0,58699.0,0.21311183]
[1724057335128,0.11056118,58700.0,58699.0,0.55383283]
[1724057335517,0.083622,58700.0,58699.0,0.55383283]
[1724057335988,0.083622,58700.0,58699.0,0.55383234]
[1724057339977,0.083622,58700.0,58699.0,0.55382865]
[1724057342728,0.083622,58700.0,58699.0,0.5329852]
[1724057342854,0.083622,58700.0,58699.0,0.55382212]
[1724057343926,0.002822,58700.0,58699.0,0.89454312]
[1724057346774,0.002822,58700.0,58699.0,1.01114312]
[1724057346975,0.002822,58700.0,58699.0,0.9903062]
[1724057347155,0.002822,58700.0,58699.0,1.01114334]
[1724057351109,0.002822,58700.0,58699.0,1.01114485]
[1724057354689,0.002822,58700.0,58699.0,0.89454485]
[1724057355008,0.084522,58700.0,58699.0,0.89454485]
[1724057355313,0.084522,58700.0,58699.0,0.8737062]
[1724057355541,0.084522,58700.0,58699.0,0.89454635]
[1724057355800,0.084522,58700.0,58699.0,0.89454664]
[1724057356623,0.084522,58700.0,58699.0,0.04274464]
[1724057356873,0.084522,58700.0,58699.0,0.04074464]
[1724057357115,0.11146118,58700.0,58699.0,0.04074464]
[1724057357354,0.11146118,58700.0,58699.0,0.0199042]
[1724057357355,0.17296118,58700.0,58699.0,0.0199042]
[1724057357835,0.68403318,58700.0,58699.0,0.0179042]
[1724057358094,0.68403318,58700.0,58699.0,0.0199042]
[1724057358095,0.34331818,58700.0,58699.0,0.0199042]
[1724057359661,0.39448096,58700.0,58699.0,0.0199042]
[1724057360142,0.22412396,58700.0,58699.0,0.0199042]
[1724057360402,0.16262396,58700.0,58699.0,0.0219042]
[1724057360631,0.11146118,58700.0,58699.0,0.1922642]
[1724057368672,0.11146118,58700.0,58699.0,0.21310419]
[1724057371523,0.11146118,58700.0,58699.0,0.1922642]
[1724057371726,0.11146118,58700.0,58699.0,0.21310324]
[1724057373795,0.11146118,58700.0,58699.0,0.55382424]
[1724057376107,0.11146118,58700.0,58699.0,0.55382544]
[1724057376864,0.02976118,58700.0,58699.0,1.03794644]
[1724057377077,0.02976118,58700.0,58699.0,1.5949058]
[1724057377296,0.02976118,58700.0,58699.0,2.48853893]
[1724057377512,0.002822,58700.0,58699.0,4.15168126]
[1724057377747,1e-08,58700.0,58699.0,4.5359192]
[1724057378179,0.00056115,58711.0,58710.0,1.337499]
[1724057378392,0.00056115,58711.0,58710.0,1.51962306]
[1724057379249,0.00056115,58711.0,58710.0,1.48428984]
[1724057379453,0.00056115,58711.0,58710.0,1.48427007]
[1724057379661,0.00056115,58711.0,58710.0,1.51960329]
[1724057379875,0.00056115,58711.0,58710.0,1.48427007]
[1724057380092,0.00056115,58711.0,58710.0,1.4842665]
[1724057380739,0.00056115,58711.0,58710.0,1.4982665]
[1724057381147,0.00056115,58711.0,58710.0,1.5122665]
[1724057381607,0.00056115,58711.0,58710.0,1.50292189]
[1724057386077,0.00056115,58711.0,58710.0,1.50292343]
[1724057386289,0.00056115,58711.0,58710.0,1.67447797]
[1724057391452,0.00056115,58711.0,58710.0,1.65365354]
[1724057391663,0.00056115,58711.0,58710.0,1.67447548]
[1724057392085,0.00056115,58711.0,58710.0,1.6744755]
[1724057392736,0.00056115,58711.0,58710.0,1.65365354]
[1724057393148,0.00056115,58711.0,58710.0,1.67447551]
[1724057393843,0.00056115,58711.0,58710.0,1.59497551]
[1724057395077,0.00056115,58711.0,58710.0,3.09497551]
[1724057395331,0.00056115,58711.0,58710.0,3.07415354]
[1724057404676,0.00056115,58711.0,58710.0,3.07435354]
[1724057405317,0.00056115,58711.0,58710.0,3.11902995]
[1724057406287,0.00056115,58711.0,58710.0,3.13985926]
[1724057409260,0.00056115,58711.0,58710.0,3.13983469]
[1724057409792,0.00056115,58711.0,58710.0,3.13983284]
[1724057414157,0.00056115,58711.0,58710.0,3.56088984]
[1724057414394,0.00056115,58711.0,58710.0,3.63084564]
[1724057414598,0.00056115,58711.0,58710.0,3.63184564]
[1724057415203,0.00056115,58711.0,58710.0,3.63384564]
[1724057415535,0.00056115,58711.0,58710.0,1.99841054]
[1724057415759,0.00056115,58711.0,58710.0,2.06388532]
[1724057415960,0.00056115,58711.0,58710.0,2.19329545]
[1724057416160,0.00056115,58711.0,58710.0,3.74954356]
[1724057416394,0.00056115,58711.0,58710.0,3.80335689]
[1724057416760,0.00056115,58711.0,58710.0,3.74389871]
[1724057417232,0.00056115,58711.0,58710.0,3.74589871]
[1724057417747,0.00056115,58711.0,58710.0,4.11203158]
[1724057418085,0.00056115,58711.0,58710.0,4.18809418]
[1724057418291,1e-08,58711.0,58710.0,4.48981711]
[1724057418685,1e-08,58711.0,58710.0,4.14916011]
[1724057419097,1e-08,58711.0,58710.0,4.48981711]
[1724057421347,1e-08,58711.0,58710.0,4.40069261]
[1724057421696,1e-08,58711.0,58710.0,4.48976646]
[1724057421898,1e-08,58711.0,58710.0,4.01227034]
[1724057422108,1e-08,58711.0,58710.0,4.49987672]
[1724057423440,1e-08,58711.0,58710.0,5.02013372]
[1724057423641,1e-08,58711.0,58710.0,5.67182053]
[1724057425358,1e-08,58711.0,58710.0,4.85813603]
[1724057425562,1e-08,58711.0,58710.0,5.03288547]
[1724057425763,0.00100001,58711.0,58710.0,5.03288547]
[1724057425968,0.00100001,58711.0,58710.0,4.85328547]
[1724057426168,1e-08,58711.0,58710.0,4.83546763]
[1724057426576,0.00100001,58711.0,58710.0,4.84946419]
[1724057427015,1e-08,58711.0,58710.0,4.83546419]
[1724057427231,1e-08,58711.0,58710.0,4.12096557]
[1724057427447,1e-08,58711.0,58710.0,4.11664837]
[1724057427650,0.00100001,58711.0,58710.0,4.16467662]
[1724057427849,0.00100001,58711.0,58710.0,4.104312]
[1724057428029,0.07960001,58711.0,58710.0,3.57466486]
[1724057428459,0.08160001,58711.0,58710.0,3.60266486]
[1724057428665,0.08060001,58711.0,58710.0,3.53490294]
[1724057428873,0.08060001,58711.0,58710.0,3.41830294]
[1724057429075,0.08160001,58711.0,58710.0,3.54890294]
[1724057429277,0.07960001,58711.0,58710.0,3.50478201]
[1724057429407,0.07960001,58711.0,58710.0,3.52090921]
[1724057429619,0.08060001,58711.0,58710.0,3.53490921]
[1724057429822,0.07960001,58711.0,58710.0,3.52090921]
[1724057430031,0.07960001,58711.0,58710.0,3.39124777]
[1724057430254,0.08060001,58711.0,58710.0,1.56506357]
[1724057430659,0.08160001,58711.0,58710.0,1.57906357]
[1724057430980,0.08160001,58711.0,58710.0,3.07906357]
[1724057431182,0.08060001,58711.0,58710.0,3.06506357]
[1724057431587,0.08160001,58711.0,58710.0,3.17906357]
[1724057433377,0.08160001,58711.0,58710.0,1.67906357]
[1724057433944,0.08160001,58711.0,58710.0,1.67907409]
[1724057435043,0.08160001,58711.0,58710.0,1.67907941]
[1724057435457,0.14800001,58711.0,58710.0,1.64380139]
[1724057435658,0.14800001,58711.0,58710.0,1.67907941]
[1724057436047,0.14800001,58711.0,58710.0,1.64380139]
[1724057437088,0.14800001,58711.0,58710.0,1.67907941]
[1724057437299,0.14800001,58711.0,58710.0,3.17907941]
[1724057437499,0.08160001,58711.0,58710.0,3.17910183]
[1724057439747,0.14800001,58711.0,58710.0,1.0056538]
[1724057439971,0.14800001,58711.0,58710.0,0.9056538]
[1724057440307,0.14800001,58711.0,58710.0,0.5649968]
[1724057440775,0.14700001,58711.0,58710.0,0.5509968]
[1724057441194,0.14800001,58711.0,58710.0,0.5649968]
[1724057441347,0.14800001,58711.0,58710.0,0.544185]
[1724057441544,0.14700001,58711.0,58710.0,0.55100181]
[1724057442162,0.14700001,58711.0,58710.0,0.54900181]
[1724057442555,0.14800001,58711.0,58710.0,0.56300181]
[1724057442762,0.14700001,58711.0,58710.0,0.54900181]
[1724057443175,0.14700001,58711.0,58710.0,0.56000181]
[1724057443382,0.14800001,58711.0,58710.0,0.56000181]
[1724057443806,0.14800001,58711.0,58710.0,2.06000181]
[1724057444423,0.14800001,58711.0,58710.0,0.90065881]
[1724057445265,0.14800001,58711.0,58710.0,0.56000181]
[1724057445603,0.14800001,58711.0,58710.0,0.90065881]
[1724057445825,0.14800001,58711.0,58710.0,0.56000181]
[1724057446015,0.14800001,58711.0,58710.0,0.90065881]
[1724057448823,0.14800001,58711.0,58710.0,0.90156301]
[1724057449456,0.14800001,58711.0,58710.0,0.90156391]
[1724057452210,0.14700002,58711.0,58710.0,0.90156391]
[1724057456094,0.14700002,58711.0,58710.0,0.56090691]
[1724057456511,0.14700002,58711.0,58710.0,0.90156391]
[1724057457353,0.14700002,58711.0,58710.0,0.8807462]
[1724057457553,0.14700002,58711.0,58710.0,0.90156167]
[1724057457756,0.14700002,58711.0,58710.0,0.90156164]
[1724057458709,0.14700002,58711.0,58710.0,0.90155971]
[1724057460542,0.14782202,58711.0,58710.0,0.90155971]
[1724057460891,0.14782202,58711.0,58710.0,0.8807462]
[1724057461096,0.14782202,58711.0,58710.0,0.9015531]
[1724057464470,0.14782202,58711.0,58710.0,0.90155144]
[1724057464679,0.14782202,58711.0,58710.0,0.04990944]
[1724057464873,0.1747612,58711.0,58710.0,0.04990944]
[1724057466283,0.1747612,58711.0,58710.0,0.22023744]
[1724057466693,0.14782202,58711.0,58710.0,0.56089444]
[1724057467255,0.14782202,58711.0,58710.0,1.01815144]
[1724057468411,0.14782202,58711.0,58710.0,1.01815197]
[1724057472660,0.14782202,58711.0,58710.0,1.01815244]
[1724057474760,0.14782202,58711.0,58710.0,0.9973462]
[1724057474983,0.14782202,58711.0,58710.0,1.0181524]
[1724057478778,0.08142202,58711.0,58710.0,1.0181524]
[1724057481543,0.08142202,58711.0,58710.0,1.01815071]
[1724057481737,0.08142202,58711.0,58710.0,0.9973462]
[1724057481956,0.08142202,58711.0,58710.0,1.01813767]
[1724057483404,0.08142202,58711.0,58710.0,1.35879467]
[1724057486184,0.08142202,58711.0,58710.0,2.01953778]
[1724057486185,0.002822,58711.0,58710.0,2.01953778]
[1724057486349,0.002822,58711.0,58710.0,2.15579544]
[1724057486722,0.002822,58711.0,58710.0,2.60247706]
[1724057486923,0.002822,58711.0,58710.0,4.22960058]
[1724057487133,0.001822,58711.0,58710.0,4.28984458]
[1724057487336,0.001822,58711.0,58710.0,4.26438301]
[1724057487793,0.001822,58711.0,58710.0,4.26338301]
[1724057488201,0.001822,58711.0,58710.0,4.27538301]
[1724057488398,0.001822,58711.0,58710.0,4.67640298]
[1724057488607,0.000822,58711.0,58710.0,4.49337806]
[1724057489011,0.001822,58711.0,58710.0,4.52137806]
[1724057489416,0.001822,58711.0,58710.0,4.64836381]
[1724057489626,0.001822,58711.0,58710.0,4.63436381]
[1724057489831,0.001822,58711.0,58710.0,4.64451605]
[1724057490184,0.001822,58711.0,58710.0,4.5035303]
[1724057490185,0.000822,58711.0,58710.0,4.5035303]
[1724057490398,0.000822,58711.0,58710.0,4.48272851]
[1724057490598,0.000822,58711.0,58710.0,4.52896398]
[1724057490796,0.000822,58711.0,58710.0,4.55696398]
[1724057491031,0.000822,58711.0,58710.0,4.55690973]
[1724057491188,0.000822,58711.0,58710.0,4.54290973]
[1724057491392,0.000822,58711.0,58710.0,4.52890973]
[1724057491593,0.000822,58711.0,58710.0,4.54290973]
[1724057491801,0.000822,58711.0,58710.0,4.55690973]
[1724057492009,0.000822,58711.0,58710.0,4.54290973]
[1724057492205,0.000822,58711.0,58710.0,4.52890973]
[1724057492659,0.000822,58711.0,58710.0,4.54290973]
[1724057493435,1e-06,58711.0,58710.0,4.92056673]
[1724057493663,0.000822,58718.0,58717.0,1.603572]
[1724057493921,0.000822,58718.0,58717.0,2.1078518]
[1724057494320,0.000822,58718.0,58717.0,3.55709754]
[1724057494741,0.000822,58718.0,58717.0,3.55709864]
[1724057494976,0.000822,58718.0,58717.0,3.57109864]
[1724057495177,0.000822,58718.0,58717.0,3.56430955]
[1724057495382,0.000822,58718.0,58717.0,3.58509849]
[1724057496702,0.000822,58718.0,58717.0,3.58609849]
[1724057496903,0.000822,58718.0,58717.0,3.60221552]
[1724057497105,0.000822,58718.0,58717.0,3.60421552]
[1724057497483,0.000822,58718.0,58717.0,3.58809849]
[1724057497935,0.000822,58718.0,58717.0,3.59850405]
[1724057498779,0.000822,58718.0,58717.0,3.59550405]
[1724057498993,0.000822,58718.0,58717.0,3.55092104]
[1724057499205,0.000822,58718.0,58717.0,3.59551476]
[1724057500024,0.000822,58718.0,58717.0,3.5851092]
[1724057500667,0.000822,58718.0,58717.0,3.5193092]
[1724057501325,0.000822,58718.0,58717.0,3.1786932]
[1724057503441,0.000822,58718.0,58717.0,3.17869746]
[1724057504288,0.000822,58718.0,58717.0,3.17869641]
[1724057504492,0.000822,58718.0,58717.0,3.17969641]
[1724057504906,0.000822,58718.0,58717.0,3.18169641]
[1724057507005,0.000822,58718.0,58717.0,3.17869641]
[1724057507569,0.000822,58718.0,58717.0,3.15789922]
[1724057507776,0.000822,58718.0,58717.0,3.17869087]
[1724057508019,0.000822,58718.0,58717.0,3.17869077]
[1724057508217,0.000822,58718.0,58717.0,3.17969077]
[1724057509365,0.000822,58718.0,58717.0,3.18169077]
[1724057509774,0.000822,58718.0,58717.0,3.17869077]
[1724057511067,0.000822,58718.0,58717.0,3.24692477]
[1724057511476,0.000822,58718.0,58717.0,3.24692064]
[1724057512090,0.000822,58718.0,58717.0,3.24792064]
[1724057512512,0.000822,58718.0,58717.0,3.24692064]
[1724057512886,0.000822,58718.0,58717.0,3.24792064]
[1724057513097,0.000822,58718.0,58717.0,3.24692064]
[1724057513303,0.000822,58718.0,58717.0,3.26303602]
[1724057514381,0.000822,58718.0,58717.0,3.31676447]
[1724057515173,0.082622,58718.0,58717.0,3.37613629]
[1724057515568,0.082622,58718.0,58717.0,3.18154454]
[1724057515774,0.000822,58718.0,58717.0,3.37613473]
[1724057516389,0.000822,58718.0,58717.0,3.31676393]
[1724057519061,0.000822,58718.0,58717.0,3.18154454]